fUSD/lending_fUSD_20250814
["ID","MTS","AMOUNT","RATE_DAILY","PERIOD"]
[379163073,1755171040869,-304.02739999,0.000249,2]
[379163075,1755171040881,-3020.9422373,0.000249,2]
[379163077,1755171040894,-45653.94870908,0.000249,2]
[379163078,1755171040904,-1137.50468315,0.000249,2]
[379163079,1755171040919,-596.00593733,0.00025,7]
[379163080,1755171040929,-294.2,0.00025566,2]
[379163081,1755171040939,-160.0,0.00025898,2]
[379163082,1755171040948,-1305.3646098,0.0002599,2]
[379163083,1755171040957,-473.9457837,0.00026,2]
[379163084,1755171040967,-1000.0,0.00026302,2]
[379163085,1755171040976,-3532.13,0.00026318,2]
[379163086,1755171040985,-720.63,0.00026506,30]
[379163087,1755171040994,-248.37,0.00026676,2]
[379163088,1755171041003,-666.0,0.00027055,3]
[379163089,1755171041013,-501.0,0.00027137,2]
[379163090,1755171041023,-152.77,0.00027392,2]
[379163091,1755171041032,-999.99,0.00027397,2]
[379163092,1755171041042,-150.99,0.00027397,2]
[379163093,1755171041051,-8253.99,0.00027397,2]
[379163094,1755171041061,-150.99,0.00027397,2]
[379163095,1755171041070,-9999.99,0.00027397,2]
[379163096,1755171041080,-4946.83,0.00027397,2]
[379163097,1755171041089,-299.99,0.00027397,12]
[379163098,1755171041098,-8669.23,0.00027397,2]
[379163099,1755171041108,-5321.77,0.00027397,2]
[379163100,1755171041117,-1508.96,0.00027397,2]
[379163101,1755171041126,-152.77,0.00027413,2]
[379163102,1755171041136,-152.77,0.00027434,2]
[379163103,1755171041145,-152.77,0.00027455,2]
[379163104,1755171041155,-152.77,0.00027476,2]
[379163105,1755171041164,-7628.71971734,0.00027493,2]
[379163106,1755171041173,-152.77,0.00027497,2]
[379163107,1755171041182,-646.21545458,0.00027503,13]
[379163108,1755171041192,-152.77,0.00027518,2]
[379163109,1755171041201,-152.77,0.00027539,2]
[379163110,1755171041210,-152.77,0.0002756,2]
[379163111,1755171041220,-152.77,0.00027581,2]
[379163112,1755171041229,-1305.3646098,0.000276,2]
[379163113,1755171041239,-152.77,0.00027602,2]
[379163114,1755171041248,-152.77,0.00027623,2]
[379163115,1755171041258,-8603.29708405,0.00027635,2]
[379163116,1755171041267,-152.77,0.00027645,2]
[379163117,1755171041278,-152.77,0.00027666,2]
[379163118,1755171041287,-239.83,0.00027779,2]
[379163119,1755171041297,-500.0,0.00027781,2]
[379163120,1755171041307,-163.8,0.00027798,2]
[379163121,1755171041316,-172.52,0.00027824,2]
[379163122,1755171041325,-17206.5941681,0.000279,2]
[379163123,1755171041335,-30514.8788694,0.000279,2]
[379163124,1755171041344,-900.0,0.000279,10]
[379163125,1755171041353,-300.0,0.0002791,2]
[379163126,1755171041362,-600.0,0.0002791,2]
[379163127,1755171041372,-500.0,0.0002791,2]
[379163128,1755171041381,-9274.81107495,0.0002791,2]
[379163129,1755171041390,-500.0,0.0002791,2]
[379163130,1755171041399,-500.0,0.0002791,2]
[379163131,1755171041409,-500.0,0.0002791,2]
[379163132,1755171041418,-500.0,0.0002791,2]
[379163133,1755171041427,-500.0,0.0002791,2]
[379163134,1755171041435,-500.0,0.0002791,2]
[379163135,1755171041445,-500.0,0.0002791,2]
[379163136,1755171041454,-500.0,0.0002791,2]
[379163137,1755171041463,-1000.0,0.0002791,2]
[379163138,1755171041472,-500.0,0.0002791,2]
[379163139,1755171041481,-1000.0,0.0002791,2]
[379163140,1755171041491,-160.0,0.0002791,2]
[379163141,1755171041500,-500.0,0.0002791,2]
[379163142,1755171041509,-1000.0,0.0002791,2]
[379163143,1755171041518,-1000.0,0.0002791,2]
[379163144,1755171041527,-1000.0,0.0002791,2]
[379163145,1755171041536,-1000.0,0.0002791,2]
[379163146,1755171041546,-1000.0,0.0002791,2]
[379163147,1755171041555,-1000.0,0.0002791,2]
[379163148,1755171041564,-1000.0,0.0002791,2]
[379163149,1755171041572,-1000.0,0.0002791,2]
[379163150,1755171041581,-1386.78395259,0.0002791,2]
[379163151,1755171041590,-1000.0,0.0002791,2]
[379163152,1755171041599,-1000.0,0.0002791,2]
[379163153,1755171041608,-500.0,0.0002791,2]
[379163154,1755171041618,-1000.0,0.0002791,2]
[379163155,1755171041627,-1000.0,0.0002791,2]
[379163156,1755171041636,-500.0,0.0002791,2]
[379163157,1755171041646,-1000.0,0.0002791,2]
[379163158,1755171041655,-1000.0,0.0002791,2]
[379163159,1755171041664,-500.0,0.0002791,2]
[379163160,1755171041673,-1000.0,0.0002791,2]
[379163161,1755171041682,-1000.0,0.0002791,2]
[379163162,1755171041691,-500.0,0.0002791,2]
[379163163,1755171041700,-1000.0,0.0002791,2]
[379163164,1755171041709,-262.51541034,0.0002791,2]
[379163165,1755171041719,-1000.0,0.0002791,2]
[379163166,1755171041728,-1000.0,0.0002791,2]
[379163167,1755171041739,-1000.0,0.0002791,2]
[379163168,1755171041753,-151.0,0.0002791,2]
[379163169,1755171041762,-1000.0,0.0002791,2]
[379163170,1755171041771,-1000.0,0.0002791,2]
[379163171,1755171041782,-1000.0,0.0002791,2]
[379163172,1755171041791,-277.35679052,0.0002791,2]
[379163173,1755171041801,-1000.0,0.0002791,2]
[379163174,1755171041811,-1000.0,0.0002791,2]
[379163175,1755171041822,-186.49682584,0.0002791,2]
[379163176,1755171041831,-1000.0,0.0002791,2]
[379163177,1755171041842,-1000.0,0.0002791,2]
[379163178,1755171041851,-500.0,0.0002791,2]
[379163179,1755171041861,-1000.0,0.0002791,2]
[379163180,1755171041871,-500.0,0.0002791,2]
[379163181,1755171041881,-500.0,0.0002791,2]
[379163182,1755171041890,-500.0,0.0002791,2]
[379163183,1755171041900,-500.0,0.0002791,2]
[379163184,1755171041911,-500.0,0.0002791,2]
[379163185,1755171041921,-500.0,0.0002791,2]
[379163186,1755171041931,-500.0,0.0002791,2]
[379163187,1755171041940,-500.0,0.0002791,2]
[379163188,1755171041949,-500.0,0.0002791,2]
[379163189,1755171041958,-331.90346692,0.0002791,2]
[379163190,1755171041969,-151.0,0.0002791,2]
[379163191,1755171041978,-200.0,0.0002791,2]
[379163192,1755171041987,-200.0,0.0002791,2]
[379163193,1755171041996,-200.0,0.0002791,2]
[379163194,1755171042005,-200.0,0.0002791,2]
[379163195,1755171042015,-200.0,0.0002791,2]
[379163196,1755171042024,-200.0,0.0002791,2]
[379163197,1755171042034,-200.0,0.0002791,2]
[379163198,1755171042043,-200.0,0.0002791,2]
[379163199,1755171042053,-200.0,0.0002791,2]
[379163200,1755171042062,-157.25305933,0.0002791,2]
[379163201,1755171042071,-500.0,0.0002791,2]
[379163202,1755171042080,-500.0,0.0002791,2]
[379163203,1755171042090,-626.07594934,0.0002791,2]
[379163204,1755171042099,-240.54,0.00027941,2]
[379163205,1755171042108,-9617.97908473,0.00027965,2]
[379163206,1755171042118,-150.0,0.00028,60]
[379163207,1755171042127,-7628.71971734,0.0002801,2]
[379163208,1755171042137,-9973.84431086,0.0002802,2]
[379163209,1755171042147,-7628.71971734,0.00028065,2]
[379163210,1755171042158,-10342.87655036,0.00028075,2]
[379163211,1755171042167,-3064.0,0.000281,5]
[379163212,1755171042176,-7628.71971734,0.0002812,2]
[379163213,1755171042186,-10725.56298273,0.0002813,2]
[379163214,1755171042195,-11122.40881309,0.00028185,2]
[379163215,1755171042204,-22886.159152,0.00028193,2]
[379163216,1755171042214,-7628.71971734,0.0002823,2]
[379163217,1755171042223,-11533.93793917,0.0002824,2]
[379163218,1755171042233,-844.53,0.00028284,2]
[379163219,1755171042242,-1000.0,0.00028284,2]
[379163220,1755171042251,-200.0,0.00028284,2]
[379163221,1755171042261,-7628.71971734,0.00028285,2]
[379163222,1755171042271,-11960.69364292,0.00028295,2]
[379163223,1755171042280,-7628.71971734,0.00028315,2]
[379163224,1755171042289,-17711.1,0.00028325,7]
[379163225,1755171042299,-7628.71971734,0.0002834,2]
[379163226,1755171042308,-12403.23930771,0.0002835,2]
[379163227,1755171042317,-904.25,0.00028398,2]
[379163228,1755171042326,-458.13769775,0.000284,7]
[379163229,1755171042336,-211.86673127,0.000284,7]
[379163230,1755171042566,-6419.59187163,0.00028405,2]
[379163231,1755171042585,-600.0,0.00028458,2]
[379163232,1755171042594,-151.0,0.00028458,2]
[379163233,1755171042604,-161.28888694,0.00028463,2]
[379163234,1755171042614,-150.0,0.00028562,2]
[379163235,1755171042623,-194.23,0.00028569,2]
[379163236,1755171042633,-7628.71971734,0.00028916,2]
[379163237,1755171042643,-294.2,0.00028982,2]
[379163238,1755171042652,-600.0,0.00029006,2]
[379163239,1755171042663,-1305.3646098,0.00029211,2]
[379163240,1755171042673,-311.1,0.00029279,2]
[379163241,1755171042684,-160.0,0.00029279,2]
[379163242,1755171042693,-287.61899177,0.00029279,2]
[379163243,1755171042705,-240.54,0.00029338,2]
[379163244,1755171042716,-172.52,0.00029355,2]
[379163245,1755171042727,-600.0,0.00029554,2]
[379163246,1755171042739,-169.0,0.00029951,3]
[379163247,1755171042758,-600.0,0.00030102,2]
[379163248,1755171042769,-7628.71971734,0.00030639,2]
[379163249,1755171042778,-322.6107,0.00030648,2]
[379163250,1755171042788,-160.0,0.00030648,2]
[379163251,1755171042799,-298.26089446,0.00030648,2]
[379163252,1755171042811,-1438.09495884,0.00030649,2]
[379163254,1755171042821,-600.0,0.0003065,2]
[379163255,1755171042831,-240.54,0.00030735,2]
[379163257,1755171042841,-1305.3646098,0.00030821,2]
[379163259,1755171042851,-172.52,0.00030886,2]
[379163261,1755171042861,-624.970323,0.00031,2]
[379163262,1755171042871,-600.0,0.00031198,2]
[379163263,1755171042881,-163.8,0.00031273,2]
[379163264,1755171042891,-210.11,0.00031578,80]
[379163265,1755171042900,-764.68672131,0.00031687,2]
[379163266,1755171042910,-600.0,0.00031746,2]
[379163267,1755171042919,-1000.0,0.0003182,2]
[379163268,1755171042929,-334.5472959,0.00032017,2]
[379163269,1755171042938,-160.0,0.00032017,2]
[379163270,1755171042947,-309.29654756,0.00032017,2]
[379163272,1755171042957,-3726.0,0.00032121,2]
[379163274,1755171042966,-240.54,0.00032132,2]
[379163275,1755171042975,-1000.0,0.00032275,2]
[379163276,1755171042984,-7628.71971734,0.00032279,2]
[379163277,1755171042994,-600.0,0.00032294,2]
[379163278,1755171043003,-1000.0,0.00032362,2]
[379163279,1755171043012,-294.2,0.00032398,4]
[379163280,1755171043022,-172.52,0.00032416,2]
[379163281,1755171043031,-150.0,0.00032432,2]
[379163282,1755171043041,-2636.18,0.00032432,2]
[379163283,1755171043051,-1305.3646098,0.00032432,2]
[379163284,1755171043061,-181.586,0.00032481,32]
[379163285,1755171043071,-3492.369,0.00032481,32]
[379163286,1755171043080,-720.63,0.0003273,30]
[379163287,1755171043090,-150.0,0.00032767,2]
[379163288,1755171043099,-194.23,0.00032854,2]
[379163289,1755171043109,-1000.0,0.00032876,120]
[379163290,1755171043119,-630.4521863,0.00032877,7]
[379163291,1755171043128,-9746.2,0.000329,14]
[379163292,1755171043138,-249.17291142,0.00032916,2]
[379163293,1755171043147,-292.23983439,0.00033065,2]
[379163294,1755171043157,-7628.71971734,0.0003312,2]
[379163295,1755171043167,-248.37,0.00033165,2]
[379163296,1755171043178,-335.30675735,0.00033215,2]
[379163297,1755171043188,-378.37368031,0.00033364,2]
[379163298,1755171043198,-346.92554585,0.00033386,2]
[379163299,1755171043207,-160.0,0.00033386,2]
[379163300,1755171043217,-320.74051982,0.00033386,2]
[379163301,1755171043228,-1491.30447232,0.00033388,2]
[379163302,1755171043238,-153.0,0.000335,120]
[379163303,1755171043248,-908.0,0.000335,2]
[379163304,1755171043258,-9746.2,0.000335,14]
[379163305,1755171043268,-421.44060327,0.00033514,2]
[379163306,1755171043278,-240.54,0.00033529,2]
[379163307,1755171043288,-583.638292,0.000336,7]
[379163308,1755171043298,-583.638292,0.000336,7]
[379163309,1755171043308,-464.50752623,0.00033663,2]
[379163310,1755171043317,-1000.0,0.00033794,2]
[379163311,1755171043326,-376.86555015,0.00033798,2]
[379163312,1755171043336,-507.5744492,0.00033813,2]
[379163313,1755171043346,-7628.71971734,0.00033891,2]
[379163314,1755171043355,-854.37101866,0.00033893,2]
[379163315,1755171043365,-1000.0,0.00033898,2]
[379163316,1755171043375,-1000.0,0.00033901,2]
[379163317,1755171043385,-550.64137216,0.00033962,2]
[379163318,1755171043394,-1000.0,0.0003401,2]
[379163319,1755171043404,-1305.3646098,0.00034042,2]
[379163320,1755171043413,-9746.2,0.000341,14]
[379163321,1755171043423,-376.86555013,0.00034102,2]
[379163322,1755171043433,-593.70829512,0.00034112,2]
[379163323,1755171043443,-1000.0,0.00034138,2]
[379163324,1755171043452,-1000.0,0.00034166,2]
[379163325,1755171043461,-636.77521808,0.00034261,2]
[379163326,1755171043471,-7628.71971734,0.0003428,2]
[379163327,1755171043481,-17561.03400455,0.0003429,7]
[379163328,1755171043490,-1000.0,0.00034347,2]
[379163329,1755171043500,-150.0,0.00034388,2]
[379163330,1755171043509,-150.0,0.00034396,2]
[379163332,1755171043519,-376.86555013,0.00034406,2]
[379163334,1755171043530,-679.84214105,0.0003441,2]
[379163335,1755171043540,-1000.0,0.00034427,2]
[379163336,1755171043549,-890.0,0.0003443,2]
[379163337,1755171043559,-7628.71971734,0.00034444,2]
[379163338,1755171043569,-11325.14083702,0.00034454,120]
[379163339,1755171043578,-1000.0,0.00034489,2]
[379163340,1755171043588,-1000.0,0.00034504,2]
[379163341,1755171043597,-150.0,0.00034523,2]
[379163342,1755171043606,-150.0,0.00034558,2]
[379163343,1755171043616,-722.90906401,0.0003456,2]
[379163344,1755171043625,-150.0,0.00034562,2]
[379163345,1755171043635,-150.0,0.00034562,2]
[379163346,1755171043645,-1000.0,0.0003458,2]
[379163347,1755171043654,-150.0,0.00034594,2]
[379163348,1755171043664,-1000.0,0.000346,2]
[379163349,1755171043673,-150.0,0.00034642,2]
[379163350,1755171043683,-300.0,0.00034654,2]
[379163351,1755171043693,-593.32,0.00034654,2]
[379163352,1755171043702,-173.4,0.00034654,2]
[379163353,1755171043711,-362.86,0.00034654,2]
[379163354,1755171043720,-173.4,0.00034654,2]
[379163355,1755171043730,-360.13,0.00034654,2]
[379163356,1755171043740,-173.25,0.00034654,2]
[379163357,1755171043754,-165.84,0.00034654,2]
[379163358,1755171043763,-356.98,0.00034654,2]
[379163359,1755171043773,-1000.0,0.00034681,2]
[379163360,1755171043783,-7628.71971734,0.00034699,2]
[379163361,1755171043793,-765.97598697,0.00034709,2]
[379163362,1755171043802,-376.86555013,0.0003471,2]
[379163363,1755171043812,-1198.63,0.00034712,120]
[379163364,1755171043822,-163.8,0.00034748,2]
[379163365,1755171043832,-359.76179104,0.00034755,2]
[379163366,1755171043841,-160.0,0.00034755,2]
[379163367,1755171043851,-332.60791905,0.00034755,2]
[379163368,1755171043861,-1000.0,0.00034764,2]
[379163369,1755171043870,-9746.2,0.000348,14]
[379163370,1755171043880,-150.0,0.00034811,2]
[379163371,1755171043890,-150.0,0.00034813,2]
[379163372,1755171043900,-150.0,0.00034813,2]
[379163373,1755171043909,-151.97041497,0.00034826,2]
[379163374,1755171043919,-809.04290993,0.00034859,2]
[379163375,1755171043929,-150.0,0.00034863,2]
[379163376,1755171043938,-150.0,0.00034873,2]
[379163377,1755171043947,-5562.19903409,0.0003489,14]
[379163378,1755171043957,-150.0,0.00034945,2]
[379163379,1755171043966,-15257.4394347,0.0003499,2]
[379163380,1755171043976,-10720.28379849,0.00034999,2]
[379163381,1755171043985,-249.9,0.00035,14]
[379163382,1755171043995,-500.0,0.00035,120]
[379163383,1755171044005,-16334.47685183,0.00035,3]
[379163384,1755171044015,-31772.72939477,0.00035,30]
[379163385,1755171044024,-3900.0,0.00035,7]
[379163386,1755171044034,-1210.33050997,0.00035,2]
[379163387,1755171044044,-10643.16097299,0.00035,2]
[379163388,1755171044053,-1616.80905578,0.00035,90]
[379163389,1755171044063,-1890.20902266,0.00035,7]
[379163390,1755171044073,-458.13769775,0.00035,3]
[379163391,1755171044082,-211.86673127,0.00035,3]
[379163392,1755171044092,-150.0,0.00035005,2]
[379163393,1755171044101,-852.10983289,0.00035008,2]
[379163394,1755171044111,-376.86555013,0.00035015,2]
[379163395,1755171044120,-156.73643347,0.00035092,4]
[379163396,1755171044129,-1000.0,0.00035131,2]
[379163397,1755171044139,-165.84,0.00035151,2]
[379163398,1755171044148,-538.69,0.00035151,2]
[379163399,1755171044158,-895.17675586,0.00035158,2]
[379163400,1755171044167,-150.0,0.00035162,2]
[379163401,1755171044177,-302.01,0.00035205,2]
[379163402,1755171044186,-150.0,0.00035239,2]
[379163403,1755171044196,-150.0,0.00035256,2]
[379163404,1755171044206,-1000.0,0.00035272,2]
[379163405,1755171044217,-320.29041264,0.00035299,30]
[379163406,1755171044227,-1000.0,0.000353,120]
[379163407,1755171044237,-1900.0,0.000353,12]
[379163408,1755171044247,-168.93204715,0.00035303,2]
[379163409,1755171044256,-938.24367882,0.00035307,2]
[379163410,1755171044268,-376.86555013,0.00035319,2]
[379163411,1755171044278,-1000.0,0.00035355,2]
[379163412,1755171044288,-872.0,0.0003536,2]
[379163413,1755171044298,-3017.22347,0.0003536,2]
[379163414,1755171044308,-2900.0,0.000354,12]
[379163415,1755171044319,-9746.2,0.000354,14]
[379163416,1755171044329,-1000.0,0.00035402,2]
[379163417,1755171044338,-981.31060178,0.00035456,2]
[379163418,1755171044349,-165.69,0.00035476,2]
[379163419,1755171044358,-3017.22347,0.0003548,2]
[379163420,1755171044369,-200.0,0.0003549,7]
[379163421,1755171044380,-2216.64,0.000355,25]
[379163422,1755171044390,-3900.0,0.000355,12]
[379163423,1755171044400,-160.67283559,0.00035516,2]
[379163424,1755171044410,-911.1403443,0.00035516,2]
[379163425,1755171044420,-150.0,0.00035531,2]
[379163426,1755171044430,-211.86673127,0.00035554,2]
[379163427,1755171044440,-210.11,0.00035585,120]
[379163428,1755171044450,-799.5797884,0.00035591,2]
[379163429,1755171044459,-500.0,0.00035595,3]
[379163430,1755171044468,-583.638292,0.00035596,7]
[379163431,1755171044478,-583.638292,0.00035596,7]
[379163432,1755171044487,-911.1403443,0.00035598,2]
[379163433,1755171044496,-5000.0,0.000356,21]
[379163434,1755171044506,-5000.0,0.000356,31]
[379163435,1755171044515,-5000.0,0.000356,41]
[379163436,1755171044525,-3642.76,0.000356,30]
[379163437,1755171044535,-4800.0,0.000356,12]
[379163438,1755171044544,-741.48592172,0.000356,2]
[379163439,1755171044554,-1298.3326297,0.000356,2]
[379163440,1755171044564,-1024.37752475,0.00035606,2]
[379163441,1755171044573,-3017.22348,0.0003561,2]
[379163442,1755171044583,-161.2427544,0.00035611,2]
[379163443,1755171044592,-150.0,0.00035614,2]
[379163444,1755171044601,-150.0,0.00035615,2]
[379163445,1755171044611,-653.99650406,0.00035615,2]
[379163446,1755171044621,-461.44,0.00035615,2]
[379163447,1755171044631,-9076.76,0.00035615,120]
[379163448,1755171044640,-256.0,0.00035615,2]
[379163449,1755171044650,-3462.56392055,0.00035615,10]
[379163450,1755171044660,-1990.655451,0.00035616,7]
[379163451,1755171044670,-1990.655451,0.00035616,7]
[379163452,1755171044679,-1990.655451,0.00035616,7]
[379163453,1755171044689,-259.620744,0.00035616,7]
[379163454,1755171044699,-200.0,0.00035616,2]
[379163455,1755171044708,-253.0,0.00035616,2]
[379163456,1755171044718,-196.049567,0.00035616,7]
[379163457,1755171044728,-196.049567,0.00035616,7]
[379163458,1755171044738,-196.049567,0.00035616,7]
[379163459,1755171044752,-196.049567,0.00035616,7]
[379163460,1755171044762,-173.983887,0.00035616,7]
[379163461,1755171044772,-173.983887,0.00035616,7]
[379163462,1755171044781,-173.983887,0.00035616,7]
[379163463,1755171045170,-173.983887,0.00035616,7]
[379163464,1755171045180,-231.478503,0.00035616,7]
[379163465,1755171045189,-231.478503,0.00035616,7]
[379163466,1755171045199,-231.478503,0.00035616,7]
[379163467,1755171045210,-231.478503,0.00035616,7]
[379163468,1755171045219,-173.291888,0.00035616,7]
[379163469,1755171045230,-173.291888,0.00035616,7]
[379163470,1755171045239,-151.0,0.00035616,7]
[379163471,1755171045250,-178.307841,0.00035616,7]
[379163472,1755171045259,-178.307841,0.00035616,7]
[379163473,1755171045270,-151.0,0.00035616,7]
[379163474,1755171045280,-151.0,0.00035616,7]
[379163475,1755171045290,-151.0,0.00035616,7]
[379163476,1755171045300,-160.760216,0.00035616,7]
[379163477,1755171045309,-160.760216,0.00035616,7]
[379163478,1755171045319,-151.0,0.00035616,7]
[379163479,1755171045328,-151.0,0.00035616,7]
[379163480,1755171045337,-400.0,0.00035616,12]
[379163481,1755171045346,-281.083887,0.00035616,7]
[379163482,1755171045358,-400.0,0.00035616,12]
[379163483,1755171045368,-400.0,0.00035616,12]
[379163484,1755171045378,-400.0,0.00035616,12]
[379163485,1755171045388,-400.0,0.00035616,12]
[379163486,1755171045397,-400.0,0.00035616,12]
[379163487,1755171045407,-400.0,0.00035616,12]
[379163488,1755171045417,-400.0,0.00035616,12]
[379163489,1755171045426,-408.8,0.00035616,12]
[379163490,1755171045436,-400.0,0.00035616,12]
[379163491,1755171045446,-400.30699147,0.00035616,12]
[379163492,1755171045458,-400.57529044,0.00035616,12]
[379163493,1755171045468,-400.0,0.00035616,12]
[379163494,1755171045480,-400.0,0.00035616,12]
[379163495,1755171045489,-1816.29,0.00035616,12]
[379163496,1755171045498,-400.0,0.00035616,12]
[379163497,1755171045509,-151.0,0.00035616,7]
[379163498,1755171045520,-400.0,0.00035616,12]
[379163499,1755171045530,-886.63,0.00035616,12]
[379163500,1755171045540,-400.0,0.00035616,12]
[379163501,1755171045551,-151.0,0.00035616,7]
[379163502,1755171045560,-400.0,0.00035616,12]
[379163503,1755171045572,-400.0,0.00035616,12]
[379163504,1755171045583,-1094.15,0.00035616,12]
[379163505,1755171045593,-400.0,0.00035616,12]
[379163506,1755171045602,-400.0,0.00035616,12]
[379163507,1755171045611,-151.0,0.00035616,7]
[379163508,1755171045620,-400.0,0.00035616,12]
[379163509,1755171045629,-400.0,0.00035616,12]
[379163510,1755171045639,-583.638292,0.00035616,7]
[379163511,1755171045648,-583.638292,0.00035616,7]
[379163512,1755171045658,-400.0,0.00035616,12]
[379163513,1755171045667,-400.0,0.00035616,12]
[379163514,1755171045678,-418.39,0.00035616,12]
[379163515,1755171045687,-583.638292,0.00035616,7]
[379163516,1755171045697,-583.638292,0.00035616,7]
[379163517,1755171045706,-400.0,0.00035616,12]
[379163518,1755171045716,-400.0,0.00035616,12]
[379163519,1755171045726,-764.02,0.00035616,12]
[379163520,1755171045735,-400.0,0.00035616,12]
[379163521,1755171045745,-400.0,0.00035616,12]
[379163522,1755171045756,-400.0,0.00035616,12]
[379163523,1755171045765,-2057.09,0.00035616,12]
[379163524,1755171045775,-400.0,0.00035616,12]
[379163525,1755171045784,-400.0,0.00035616,12]
[379163526,1755171045794,-529.85581772,0.00035616,12]
[379163527,1755171045803,-720.19,0.00035616,12]
[379163528,1755171045812,-709.09,0.00035616,12]
[379163529,1755171045823,-400.0,0.00035616,12]
[379163530,1755171045834,-400.0,0.00035616,12]
[379163532,1755171045845,-400.0,0.00035616,12]
[379163534,1755171045855,-400.0,0.00035616,12]
[379163536,1755171045864,-500.0,0.00035616,2]
[379163537,1755171045873,-400.0,0.00035616,12]
[379163538,1755171045883,-400.0,0.00035616,12]
[379163539,1755171045892,-1062.31,0.00035616,12]
[379163540,1755171045901,-400.0,0.00035616,12]
[379163541,1755171045911,-156.242581,0.00035616,7]
[379163542,1755171045921,-156.242581,0.00035616,7]
[379163544,1755171045931,-400.0,0.00035616,12]
[379163545,1755171045940,-152.40966,0.00035616,7]
[379163546,1755171045949,-400.0,0.00035616,12]
[379163547,1755171045958,-400.0,0.00035616,12]
[379163548,1755171045967,-400.0,0.00035616,12]
[379163549,1755171045976,-400.0,0.00035616,12]
[379163550,1755171045986,-400.0,0.00035616,12]
[379163551,1755171045995,-400.0,0.00035616,12]
[379163552,1755171046005,-1638.58,0.00035616,12]
[379163553,1755171046015,-295.01453586,0.00035616,12]
[379163554,1755171046025,-2322.49,0.00035616,12]
[379163555,1755171046035,-400.0,0.00035616,12]
[379163556,1755171046044,-191.918338,0.00035616,7]
[379163557,1755171046053,-483.19941485,0.00035616,2]
[379163558,1755171046063,-400.0,0.00035616,12]
[379163559,1755171046073,-191.918338,0.00035616,7]
[379163560,1755171046083,-400.0,0.00035616,12]
[379163561,1755171046092,-749.98,0.00035616,12]
[379163562,1755171046102,-700.122081,0.00035616,7]
[379163563,1755171046111,-170.656605,0.00035616,7]
[379163564,1755171046121,-400.0,0.00035616,2]
[379163565,1755171046131,-700.122081,0.00035616,7]
[379163566,1755171046141,-162.412099,0.00035616,7]
[379163567,1755171046150,-462.53,0.00035616,12]
[379163568,1755171046159,-170.656605,0.00035616,7]
[379163569,1755171046169,-400.0,0.00035616,12]
[379163570,1755171046178,-400.0,0.00035616,12]
[379163571,1755171046188,-400.0,0.00035616,12]
[379163572,1755171046197,-673.89,0.00035616,12]
[379163573,1755171046206,-400.0,0.00035616,12]
[379163574,1755171046216,-188.507208,0.00035616,7]
[379163575,1755171046226,-400.0,0.00035616,12]
[379163576,1755171046235,-188.507208,0.00035616,7]
[379163577,1755171046245,-400.0,0.00035616,12]
[379163578,1755171046254,-400.0,0.00035616,12]
[379163579,1755171046264,-1153.46,0.00035616,12]
[379163580,1755171046274,-400.0,0.00035616,12]
[379163581,1755171046284,-606.44,0.00035616,12]
[379163582,1755171046294,-400.0,0.00035616,12]
[379163583,1755171046303,-400.0,0.00035616,12]
[379163584,1755171046313,-400.0,0.00035616,12]
[379163585,1755171046323,-1745.08,0.00035616,12]
[379163586,1755171046338,-1019.33,0.00035616,12]